Cogmind - Beta 9.6 @@@ ROGUE MODE // 2020.05.18 @ 12:27:34 Player: Teratos Result: Self-destructed Performance ------------- Evolutions (1) 500 Regions Visited (2) 400 Robots Destroyed (24) 120 Value Destroyed (496) 496 Prototype IDs (2) 40 Alien Tech Used (0) 0 Bonus (0) 0 TOTAL SCORE: 1556 Bonus ------- None Cogmind --------- Core Integrity 251/400 Matter 201/300 Energy 160/160 System Corruption 0% Temperature Cool (335) Movement Hovering (120) Ox1 Location -9/Materials Parts ------- > --- POWER (1) -------- Light Nuclear Core > --- PROPULSION (4) --- Airjet > --- UTILITY (2) ------ (None) > --- WEAPON (2) ------- Heavy Particle Cannon Heavy Particle Cannon > --- INVENTORY (4) ---- Light Nuclear Core Light Nuclear Core Heavy Particle Cannon Peak State ------------ > --- POWER ------------ Light Nuclear Core > --- PROPULSION ------- Airjet Airjet Airjet Airjet > --- UTILITY ---------- (None) > --- WEAPON ----------- Heavy Particle Cannon Rocket Launcher > --- INVENTORY -------- Light Nuclear Core [Rating: 20] Favorites ----------- Power Light Ion Engine Engine Light Ion Engine Power Core Light Nuclear Core Propulsion Hover Unit Leg Aluminum Leg Wheel Compact Wheel Hover Unit Hover Unit Utility Heat Sink Device Heat Sink Weapon Assault Rifle Energy Gun EM Pulse Gun Energy Cannon Heavy Particle Cannon Ballistic Gun Assault Rifle Launcher Rocket Launcher Build | -11 -10 -9 ------- Run | Scr Mat Mat Slots Evolved 2 | . . 2 Power . | . . . Propulsion 2 | . . 2 Utility . | . . . Weapon . | . . . Parts Attached 30 | 5 12 13 Power 5 | 1 1 3 Engine 2 | 1 1 . Core 3 | . . 3 Reactor . | . . . Propulsion 10 | 2 4 4 Treads . | . . . Leg 2 | 2 . . Wheel 1 | . 1 . Hover 7 | . 3 4 Flight . | . . . Utility 3 | . 2 1 Device 3 | . 2 1 Storage . | . . . Processor . | . . . Hackware . | . . . Protection . | . . . Artifact . | . . . Weapon 12 | 2 5 5 Energy Gun 5 | 1 4 . Energy Cannon 3 | . . 3 Ballistic Gun 2 | 1 1 . Ballistic Cannon . | . . . Launcher 2 | . . 2 Special Weapon . | . . . Impact Weapon . | . . . Slashing Weapon . | . . . Piercing Weapon . | . . . Special Melee Weapon . | . . . Unidentified Prototypes . | . . . Parts Lost 17 | . 10 7 Power 3 | . 2 1 Propulsion 6 | . 3 3 Utility 3 | . 2 1 Weapon 5 | . 3 2 Highest Loss Streak 7 | . 7 5 Average Slot Usage (%) 62 | . 69 37 Engine 9 | . 11 . Core 1 | . . 6 Hover 13 | . 12 14 Device 13 | . 16 2 Energy Gun 11 | . 14 . Energy Cannon 2 | . . 11 Ballistic Gun 9 | . 11 . Naked Turns 52 | . . 52 Heaviest Build 18 | 7 9 18 Greatest Support 36 | 20 20 36 Greatest Overweight (x) 3 | . 2 3 Average Overweight (x) . | . . . Largest Inventory Capacity 4 | 4 4 4 Average Capacity 4 | 4 4 4 Most Carried 4 | . . 4 Average Carried . | . . 1 Final Capacity 4 | 4 4 4 Final Carried 3 | . . 3 Class Distribution -------------------- 64% | Mutant 35% | Scavenger-Mutant Dominant Class ---------------- Mutant | -10/Materials Mutant | -9/Materials Resources | -11 -10 -9 ----------- Run | Scr Mat Mat Matter Collected 600 | 133 372 95 Remotely . | . . . Salvage Created 765 | . 587 178 Parts 41 | . 31 10 Haulers Intercepted 2 | . 2 . Recyclers Shooed 6 | . 4 2 Parts Field Recycled . | . . . Retrieved Matter . | . . . Parts Self-Destructed . | . . . Prevented . | . . . Kills | -11 -10 -9 ------- Run | Scr Mat Mat Combat Hostiles Destroyed 15 | . 8 7 Guns 8 | . 8 . Cannons 2 | . . 2 AOE 5 | . . 5 Classes Destroyed 8 | . 7 1 Builder 1 | . 1 . Hauler 2 | . 2 . Recycler 3 | . 2 1 Operator 1 | . 1 . Watcher 2 | . 1 1 Swarmer 6 | . 2 4 Grunt 7 | . 6 1 Sentry 2 | . . 2 Best Kill Streak 5 | . 3 5 Combat Bots Only 5 | . 2 5 Max Kills in Single Turn 4 | . 1 4 Gunslinging . | . . . Exploded 4 | . . 4 Melee . | . . . Uniques/NPCs Destroyed . | . . . Combat | -11 -10 -9 -------- Run | Scr Mat Mat Damage Taken 1230 | . 596 634 Core 323 | . 174 149 Absorbed by Shields . | . . . Core Remaining (%) 65 | 100 30 . Volleys Fired 75 | . 57 18 Largest 2 | . 2 2 Hottest 150 | . 85 150 Shots Fired 134 | . 104 30 Gun 104 | . 104 . Cannon 21 | . . 21 Launcher 9 | . . 9 Special . | . . . Kinetic 50 | . 50 . Thermal 32 | . 11 21 Explosive 9 | . . 9 Electromagnetic 43 | . 43 . Robot Hit Streak 10 | . 10 4 Robot Miss Streak 3 | . 3 3 Penetration Max . | . . . Secondary Targets . | . . . Shots Hit Robots 91 | . 73 18 Core Hits 36 | . 26 10 Critical Hits 1 | . 1 . Critical Kills . | . . . Critical Parts Destroyed 1 | . 1 . Melee Attacks . | . . . Impact . | . . . Slashing . | . . . Piercing . | . . . Sneak Attacks . | . . . Combat Hostiles . | . . . Follow-up Attacks . | . . . Damage Inflicted 1840 | . 982 858 Guns 950 | . 950 . Cannons 300 | . . 300 Explosions 590 | . 32 558 Melee . | . . . Ramming . | . . . Kinetic 467 | . 467 . Thermal 473 | . 173 300 Explosive 558 | . . 558 Electromagnetic 342 | . 342 . Impact . | . . . Slashing . | . . . Piercing . | . . . Highest Corruption . | . . . Average Corruption . | . . . Corruption Purged . | . . . Overload Shots . | . . . Overflow Damage 15 | . . 15 Projectiles . | . . . Explosions 15 | . . 15 Melee . | . . . Knockbacks . | . . . Impact . | . . . Kinetic . | . . . Secondary . | . . . Self-Inflicted Damage . | . . . Shots . | . . . Rammed 1 | . 1 . Targets Rammed 1 | . 1 . Kicked . | . . . Crushed . | . . . Highest Temperature 365 | . 288 365 Average Temperature 130 | . 101 162 Received Heat Transfer 288 | . 156 132 Siege Activations . | . . . Robots Corrupted . | . . . Combat Hostiles . | . . . Parts Fried . | . . . Impact Corruptions . | . . . Robots Melted . | . . . Combat Hostiles . | . . . Parts Melted . | . . . Heat Transferred 827 | . 383 444 Parts Sabotaged . | . . . Parts Stolen . | . . . Parts Stripped . | . . . Power Chain Reactions 1 | . 1 . Missiles Intercepted . | . . . Alert | -11 -10 -9 ------- Run | Scr Mat Mat Peak Influence 223 | . 112 223 Average Influence 69 | . 55 138 Maximum Alert Level 1 | . . 1 Low Security (%) 97 | 100 100 86 Level 1 2 | . . 13 Level 2 . | . . . Level 3 . | . . . Level 4 . | . . . Level 5 . | . . . High Security . | . . . Max Security . | . . . Squads Dispatched 2 | . 1 1 Investigation 2 | . 1 1 Extermination . | . . . Reinforcement . | . . . Assault . | . . . Garrison . | . . . Intercept . | . . . Construction Impeded . | . . . Haulers Reinforced . | . . . Stealth | -11 -10 -9 --------- Run | Scr Mat Mat Distress Signals 3 | . 2 1 Communications Jammed . | . . . Distress Signals . | . . . Times Spotted 32 | . 17 15 Peak Tracking Total 6 | . 6 5 Tactical Retreats 2 | . 1 1 Traps | -11 -10 -9 ------- Run | Scr Mat Mat Traps Triggered 1 | . 1 . Indirectly . | . . . Trap Hack Attempts . | . . . Triggered . | . . . Disarmed . | . . . Reprogrammed . | . . . Reused . | . . . Traps Extracted . | . . . Installed . | . . . Triggered . | . . . Machines | -11 -10 -9 ---------- Run | Scr Mat Mat Machines Disabled 2 | . . 2 Max in Single Turn 1 | . . 1 Machines Sabotaged . | . . . Garrisons Compromised . | . . . Overloaded Fab Kills . | . . . Fab Network Shutdowns . | . . . Hacking | -11 -10 -9 --------- Run | Scr Mat Mat Machines Accessed 3 | . 2 1 Terminals 3 | . 2 1 Fabricators . | . . . Repair Stations . | . . . Recycling Units . | . . . Scanalyzers . | . . . Garrison Access . | . . . Total Hacks 13 | . 10 3 Successful 7 | . 5 2 Failed 6 | . 5 1 Catastrophic 1 | . 1 . Database Lockouts . | . . . Manual . | . . . Terminals 13 | . 10 3 Fabricators . | . . . Repair Stations . | . . . Recycling Units . | . . . Scanalyzers . | . . . Garrison Access . | . . . Terminal Hacks 7 | . 5 2 Record 3 | . 2 1 Prototype ID Bank 1 | . 1 . Alert Level 1 | . 1 . Locate Traps 2 | . 1 1 Fabricator Hacks . | . . . Repair Station Hacks . | . . . Recycling Unit Hacks . | . . . Scanalyzer . | . . . Garrison Access Hacks . | . . . Unauthorized Hacks . | . . . Terminals . | . . . Fabricators . | . . . Repair Stations . | . . . Recycling Units . | . . . Scanalyzers . | . . . Garrison Access . | . . . Data Cores Recovered . | . . . Used . | . . . Hacking Detections 3 | . 2 1 Full Trace Events 3 | . 2 1 Feedback Events . | . . . Feedback Blocked . | . . . Robot Schematics Acquired . | . . . Robots Built . | . . . Matter . | . . . Time . | . . . Total Robot Build Rating . | . . . Part Schematics Acquired . | . . . Parts Built . | . . . Matter . | . . . Time . | . . . Total Part Build Rating . | . . . Parts Repaired . | . . . Time . | . . . Parts Recycled . | . . . Recycled Matter . | . . . Retrieved Matter . | . . . Retrieved Components . | . . . Parts Scanalyzed . | . . . Part Schematics Acquired . | . . . Parts Damaged . | . . . Bothacking | -11 -10 -9 ------------ Run | Scr Mat Mat Used RIF Installer . | . . . Robots Hacked . | . . . Non-combat . | . . . Combat . | . . . Robot Hacks Applied . | . . . Relay Couplers Released . | . . . Robots Rewired . | . . . Allies Hacked . | . . . Hacks Repelled . | . . . Allies | -11 -10 -9 -------- Run | Scr Mat Mat Total Allies . | . . . Largest Group . | . . . Highest-Rated Group . | . . . Highest-Rated Ally . | . . . Total Orders . | . . . Ally Attacks . | . . . Total Damage . | . . . Kills . | . . . Allies Corrupted . | . . . Allies Melted . | . . . Intel | -11 -10 -9 ------- Run | Scr Mat Mat Robot Analysis Total . | . . . Derelict Logs Recovered . | . . . Drone Launches . | . . . Drone Recoveries . | . . . Exploration | -11 -10 -9 ------------- Run | Scr Mat Mat Turns Passed 816 | 43 608 165 Spaces Moved 578 | 38 394 146 Core 130 | 14 29 87 Treads . | . . . Legs 44 | 24 20 . Wheels 22 | . 22 . Hover 382 | . 323 59 Flight . | . . . Fastest Speed 48 | 50 50 48 Average Speed 86 | 94 97 54 Slowest Speed 200 | 120 150 200 Overloaded Moves . | . . . Propulsion Burnouts . | . . . Robots Hopped . | . . . Cave-ins Triggered . | . . . Exploration Rate (%) 25 | 4 56 16 Regions Visited 2 Branch Regions . Pre-discovered Areas . | . . . Known Exits Taken . | . . . Unknown Exits Taken 2 | 1 1 . Scrap Searched . | . . . Spaces Dug . | . . . Terrain Destroyed 49 | . . 49 Melee . | . . . Projectile 5 | . . 5 AOE 44 | . . 44 Actions | -11 -10 -9 --------- Run | Scr Mat Mat Total 750 | 42 511 197 Wait 54 | . 43 11 Move 576 | 37 393 146 Hop . | . . . Pick Up 7 | . . 7 Fast Attach 25 | 5 12 8 Attach 5 | . . 5 Detach 1 | . . 1 Swap . | . . . Drop 6 | . 5 1 Fire 75 | . 57 18 Melee . | . . . Ram 1 | . 1 . Kick . | . . . Crush . | . . . Escape Stasis . | . . . Rewire . | . . . Trap . | . . . Miscellaneous . | . . . Route ------- -11/Scrapyard -10/Materials -9/Materials History --------- Turn | Location | Event 4 | -11/Scrapyard | Discovered new exit (range 16) 44 | -11/Scrapyard | Entered Materials 312 | -10/Materials | Lost 3 parts (1p1n1w) 325 | -10/Materials | Build established: Mutant 504 | -10/Materials | Discovered new exit (range 4) 641 | -10/Materials | Core integrity fell below 50% 652 | -10/Materials | Entered another Materials area 652 | -9/Materials | Evolved 2 slots: Propulsion x2 683 | -9/Materials | Lost 7 parts (1p2n2u2w) 790 | -9/Materials | Lost 5 parts (1p2n2w) 817 | -9/Materials | Self-destructed Last Messages --------------- 00780_ Acquired Lgt. Nuclear Core. 00780_ R-06 Scavenger collects Hvy. Assault Rifle. 00781_ U-05 Engineer lays Concrete. 00782_ Acquired Lgt. Nuclear Core. 00782_ U-05 Engineer builds a Wall. 00783_ U-05 Engineer lays Concrete. 00786_ U-05 Engineer builds a Wall. 00787_ U-05 Engineer lays Concrete. 00787_ Acquired 15 matter. 00788_ U-05 Engineer builds a Wall. 00794_ W-16 Scout sends out distress signal. 00795_ Terminal disabled. 00800_ S-10 Pest destroyed. 00808_ W-16 Scout destroyed. 00809_ K-01 Serf collects debris. 00811_ Disposable Heat Sink destroyed. 00812_ K-01 Serf collects debris. 00815_ R-06 Scavenger collects Lgt. Ion Engine. 00816_ Airjet destroyed. 00816_ K-01 Serf collects debris. Map ----- +----------------------------------------------------+ | ?????????????????????????????????????????????? | | ?????????????????????????????????????????????? | | ?????????????????????????????????????????????? | | ?????????????????????????????????????????????? | | ?????????????????????????????????????????????? | | ?????????????????????????????????????????????? | | ?????????????????????????????????????????????? | | ?????????????????????????????????????????????? | | ?????????????????????????????????????????????? | | ?????????????????????????????????????????????? | | ?????????????????????? ??????????????????????? | | ????????????????????? ??????????????????????? | | ????????????????????? ?????????????????????? | | ?????????????????????? "????????????????????? | | ?????????????????????? "???????????? ???????? | | ?????????????????????? "??????????? ???????? | | ??????????????????????? ???????### #????????? | | ??????????????????????? ?????? #????????? | | ???????????????????????#;##### #????????? | | ?????????????????####### # #????????? | | ?????????????????? " ^ #????????? | | ???????????????????? k +????????? | | ?????????????????????? r = s ? #????????? | | ???????????????????????? s%%/#??# #????????? | | ???????????????????????##;s;;#### #????????? | | ???????????????????????# @ # #????????? | | ???????????????????????# = """# #????????? | | ???????????????????????# """# ########?? | | ???????????????????????# ! """# # #?? | | ???????????????????????# # # #?? | | ???????????????????????# """# # #?? | | ???????????????????????# """# + #?? | | ???????????????????????# """# # #?? | | ???????????????????????# # #?? | | ???????????????????????#######+## #??????? | | ???????#?????????###### #### ##?????? | | ???????# ????????# T ## ####??? | | ???????#^^^??????# ## ! #??? | | ??????##^^^####### ] # # #??? | | ??????# # " # #??? | | ??????# # # ## #??? | | ??????# """ # " """ ! # #??? | | ??????# """ + """"" ## [ #??? | | ??????# """ # """"" +% * #####??? | | ??????# # ## #??????? | | ??????# ########## ##+###??????? | | ? # # #???????????? | | ? #### # "T" # # #???????????? | | ?? ????# # # #???????????? | | ???####??????# + #### #???????????? | +----------------------------------------------------+ Best States ------------- Heat Dissipation 45 Coolant Potential 50 Energy Generation 14 Energy Capacity 160 Matter Stores 300 Matter Capacity 300 Sight Range 16 Terrain Scan Density 10 Evasion (%) 53 Item Schematics ----------------- None Robot Schematics ------------------ None Fabricated ------------ Nothing Alien Tech Used ----------------- None Achievements -------------- None Challenges ------------ None Game ------ Seed LargeSegregatorBay Manual? 0 Play Time 00:13:36 Cumulative 24.0 hours Start 2020.05.18 @ 12:17:30 End 2020.05.18 @ 12:27:34 Sessions 1 Manual Loads 0 Difficulty Rogue Special Mode None Game No. 45 Rogue 45 Adventurer 0 Explorer 0 Win Type - Total 0 Types 0/0/0/0/0/0/0 Lore% 13 Gallery% 22 Achievement% 19 Wizard Run 0 Options --------- ASCII 0 Keyboard 0 Movement Numpad Keybinds 0 Fullscreen 1 Font 18/SmallcapsGlow Map View 76x50 Tactical HUD 1 Map Filters NONE Filters NONE Steam 1 RUN: 406c0df9-c074-4eea-909e-cb1559701f37